Cogmind - Beta 15 @@@ ROGUE MODE // 2025.05.11 @ 23:38:14 Player: Darcyisverycute Result: Destroyed by GA-8LV(R) with Subdweller Machine Gun Performance ------------- Evolutions (0) 0 Regions Visited (2) 400 Robots Destroyed (22) 110 Value Destroyed (529) 529 Prototype IDs (1) 20 Alien Tech Used (0) 0 Bonus (0) 0 TOTAL SCORE: 1059 Bonus ------- None Cogmind --------- Core Integrity 0/250 Matter 193/300 Energy 280/280 System Corruption 0% Temperature Cool (0) Movement Treading (160) Location -10/Subcaves Parts ------- > --- POWER (1) -------- Heavy Ion Engine > --- PROPULSION (2) --- Light Treads > --- UTILITY (2) ------ Small Storage Unit > --- WEAPON (2) ------- Small Laser > --- INVENTORY (8) ---- Heavy Ion Engine Medium Matter Pod (62) Shield Generator Grenade Launcher Mining Laser Hammer Peak State ------------ > --- POWER ------------ Heavy Ion Engine > --- PROPULSION ------- Light Treads Light Treads > --- UTILITY ---------- Small Storage Unit > --- WEAPON ----------- EM Pulse Gun EM Pulse Gun > --- INVENTORY -------- Heavy Ion Engine Heavy Ion Engine Shield Generator Assault Rifle Grenade Launcher Mining Laser [Rating: 9] Favorites ----------- Power Heavy Ion Engine Engine Heavy Ion Engine Propulsion Light Treads Treads Light Treads Utility Small Storage Unit Storage Small Storage Unit Weapon Assault Rifle Energy Gun EM Pulse Gun Ballistic Gun Assault Rifle Launcher Grenade Launcher Impact Weapon Hammer Build | -11 -10 -10 ------- Run | Yrd Mat Sub Slots Evolved . | . . . Power . | . . . Propulsion . | . . . Utility . | . . . Weapon . | . . . Parts Attached 14 | 6 4 4 Power 3 | 1 1 1 Engine 3 | 1 1 1 Core . | . . . Reactor . | . . . Propulsion 4 | 2 1 1 Treads 4 | 2 1 1 Leg . | . . . Wheel . | . . . Hover . | . . . Flight . | . . . Utility 1 | 1 . . Device . | . . . Storage 1 | 1 . . Processor . | . . . Hackware . | . . . Protection . | . . . Artifact . | . . . Weapon 6 | 2 2 2 Energy Gun 3 | 2 . 1 Energy Cannon . | . . . Ballistic Gun 1 | . 1 . Ballistic Cannon . | . . . Launcher 1 | . 1 . Special Weapon . | . . . Impact Weapon 1 | . . 1 Slashing Weapon . | . . . Piercing Weapon . | . . . Special Melee Weapon . | . . . Unidentified Prototypes 1 | . 1 . Parts Lost 7 | . 3 4 Power 2 | . 1 1 Propulsion 2 | . . 2 Utility . | . . . Weapon 3 | . 2 1 Highest Loss Streak 3 | . 2 3 To Critical Strikes 1 | . . 1 Average Backups 6 | 1 6 7 Power 1 | . 1 1 Propulsion 1 | . 1 . Utility 1 | . 1 2 Weapon 2 | . 2 3 Tool/Special . | . . . Unused Backups 6 | . 2 4 Power 2 | . 1 1 Propulsion . | . . . Utility 2 | . . 2 Weapon 2 | . 1 1 Tool/Special . | . . . Average Slot Usage (%) 84 | . 84 84 Engine 14 | . 14 14 Treads 28 | . 28 28 Storage 14 | . 14 14 Energy Gun 5 | . 9 . Ballistic Gun 10 | . 9 13 Launcher 7 | . 9 3 Impact Weapon 3 | . . 10 Peak Build Rating 9 | 6 9 9 Average Rating 8 | 4 8 8 On Entrance 5 | . 6 9 Naked Turns . | . . . Heaviest Build 18 | 12 18 18 Greatest Support 40 | 40 40 40 Greatest Overweight (x) 2 | 2 . . Average Overweight (x) . | . . . Largest Inventory Capacity 8 | 8 8 8 Average Capacity 7 | 7 8 8 Most Carried 8 | 2 8 8 Average Carried 6 | 1 7 7 Final Capacity 8 | 8 8 8 Final Carried 8 | 2 8 6 Class Distribution -------------------- 100% | Mutant Dominant Class ---------------- Mutant | -10/Materials Mutant | -10/Subcaves Resources | -11 -10 -10 ----------- Run | Yrd Mat Sub Matter Collected 538 | 260 207 71 Remotely . | . . . Salvage Created 527 | 92 364 71 Parts 41 | 4 31 6 Haulers Intercepted 1 | . 1 . Recyclers Shooed . | . . . Parts Field Recycled . | . . . Retrieved Matter . | . . . Parts Self-Destructed 5 | . . 5 Prevented . | . . . Kills | -11 -10 -10 ------- Run | Yrd Mat Sub Combat Hostiles Destroyed 14 | . 10 4 Guns 3 | . 1 2 AOE 10 | . 9 1 Classes Destroyed 9 | 2 6 1 Worker 2 | . 2 . Tunneler 1 | 1 . . Hauler 1 | . 1 . Recycler 1 | 1 . . Operator 2 | . 2 . Watcher 1 | . 1 . Swarmer 3 | . 3 . Grunt 7 | . 7 . Subdweller 4 | . . 4 Best Kill Streak 4 | 2 4 3 Combat Bots Only 3 | . 3 3 Max Kills in Single Turn 2 | 1 2 1 Gunslinging . | . . . Exploded 2 | . 2 1 Melee . | . . . Uniques/NPCs Destroyed . | . . . Combat | -11 -10 -10 -------- Run | Yrd Mat Sub Hostile Shots Fired 80 | . 37 43 Missed 23 | . 15 8 Hits 57 | . 22 35 Projectile 57 | . 22 35 Critical Strikes 2 | . . 2 Damage Taken 1152 | 24 386 742 Core 258 | 12 115 131 Absorbed by Shields . | . . . Core Remaining (%) 95 | 95 . . Volleys Fired 51 | 5 36 10 Largest 2 | 2 2 2 Hottest 80 | 80 80 60 Shots Fired 88 | 10 58 20 Gun 69 | 10 46 13 Cannon . | . . . Launcher 19 | . 12 7 Special . | . . . Kinetic 21 | . 11 10 Thermal 3 | . . 3 Explosive 19 | . 12 7 Electromagnetic 45 | 10 35 . Robot Hit Streak 13 | 5 7 13 Robot Miss Streak 3 | 1 3 1 Penetration Max . | . . . Secondary Targets . | . . . Shots Hit Robots 70 | 7 37 26 Core Hits 38 | 3 27 8 Critical Kills . | . . . Critical Parts Destroyed 2 | . 1 1 Critical Strikes 3 | . 2 1 Destroy 1 | . 1 . Corrupt 1 | . 1 . Smash 1 | . . 1 Melee Attacks 25 | . . 25 Impact 25 | . . 25 Slashing . | . . . Piercing . | . . . Sneak Attacks 3 | . . 3 Combat Hostiles 1 | . . 1 Follow-up Attacks . | . . . Damage Inflicted 2238 | 162 1203 873 Guns 645 | 81 422 142 Cannons . | . . . Explosions 1318 | 81 781 456 Melee 275 | . . 275 Ramming . | . . . Kinetic 205 | . 97 108 Thermal 303 | 81 188 34 Explosive 1049 | . 593 456 Electromagnetic 406 | 81 325 . Impact 275 | . . 275 Slashing . | . . . Piercing . | . . . Highest Corruption . | . . . Average Corruption . | . . . Corruption Purged . | . . . Corruption Blocked . | . . . Overload Shots . | . . . Overflow Damage 23 | . . 23 Projectiles . | . . . Explosions . | . . . Melee 23 | . . 23 Knockbacks 2 | . . 2 Impact 2 | . . 2 Kinetic . | . . . Secondary . | . . . Self-Inflicted Damage 139 | 24 115 . Shots 5 | 1 4 . Rammed . | . . . Targets Rammed . | . . . Kicked . | . . . Crushed . | . . . Highest Temperature 136 | 54 136 . Average Temperature 52 | 27 58 . Received Heat Transfer 252 | . 150 102 Siege Activations . | . . . Martial Activations . | . . . Shielding Activations . | . . . Robots Disrupted . | . . . Combat Hostiles . | . . . Robots Corrupted 1 | . . 1 Combat Hostiles 1 | . . 1 Parts Fried 2 | . 1 1 Impact Corruptions 2 | . . 2 Robots Melted . | . . . Combat Hostiles . | . . . Parts Melted . | . . . Heat Transferred 475 | 100 300 75 Parts Sabotaged . | . . . Parts Stolen . | . . . Parts Stripped . | . . . Power Chain Reactions 5 | 2 3 . Alert | -11 -10 -10 ------- Run | Yrd Mat Sub Maximum Alert Level . | . . . Low Security (%) 100 | 100 100 . Level 1 . | . . . Level 2 . | . . . Level 3 . | . . . Level 4 . | . . . Level 5 . | . . . High Security . | . . . Max Security . | . . . Peak Influence 151 | 5 151 . Initial . | . . . Average 59 | . 66 . Influence Increases 387 | 10 377 . Destroy 0b10 Robot/C 200 | . 200 . Destroy 0b10 Robot/NC 40 | 10 30 . Destroy Leader 54 | . 54 . Disable Machine 15 | . 15 . Destroy Structure 78 | . 78 . Influence Decreases 387 | 10 343 34 Entered New Map 17 | . . 17 Time Decay 350 | 10 323 17 Lost Part 20 | . 20 . Squads Dispatched 3 | . 3 . Investigation 1 | . 1 . Extermination . | . . . Reinforcement 2 | . 2 . Assault . | . . . Garrison . | . . . Intercept . | . . . Searches Triggered . | . . . Construction Impeded . | . . . Haulers Reinforced . | . . . Active Scanning Responses . | . . . Cargo Convoy Interrupts . | . . . Stealth | -11 -10 -10 --------- Run | Yrd Mat Sub Distress Signals . | . . . Communications Jammed . | . . . Distress Signals . | . . . Times Spotted 23 | . 17 6 Peak Tracking Total 3 | . 3 2 Tactical Retreats . | . . . Traps | -11 -10 -10 ------- Run | Yrd Mat Sub Traps Triggered 1 | . 1 . Indirectly . | . . . Trap Hack Attempts . | . . . Triggered . | . . . Disarmed . | . . . Reprogrammed . | . . . Reused . | . . . Traps Extracted . | . . . Installed . | . . . Triggered . | . . . Machines | -11 -10 -10 ---------- Run | Yrd Mat Sub Machines Disabled 1 | . 1 . Max in Single Turn 1 | . 1 . Machines Repaired . | . . . Machines Dismantled . | . . . Machines Sabotaged . | . . . Overloaded Fab Kills . | . . . Hacking | -11 -10 -10 --------- Run | Yrd Mat Sub Machines Accessed 2 | . 1 1 Terminals . | . . . Fabricators . | . . . Repair Stations . | . . . Recycling Units 1 | . 1 . Scanalyzers . | . . . Garrison Access . | . . . Total Hacks 6 | . 3 3 Successful 6 | . 3 3 Failed . | . . . Catastrophic . | . . . Database Lockouts . | . . . Manual 2 | . 2 . Terminals . | . . . Fabricators . | . . . Repair Stations . | . . . Recycling Units 3 | . 3 . Scanalyzers . | . . . Garrison Access . | . . . Terminal Hacks 3 | . . 3 Record 3 | . . 3 Fabricator Hacks . | . . . Repair Station Hacks . | . . . Recycling Unit Hacks 1 | . 1 . Retrieve Components 1 | . 1 . Scanalyzer . | . . . Garrison Access Hacks . | . . . Unauthorized Hacks 2 | . 2 . Terminals . | . . . Fabricators . | . . . Repair Stations . | . . . Recycling Units 2 | . 2 . Reject 1 | . 1 . Mask 1 | . 1 . Scanalyzers . | . . . Garrison Access . | . . . Data Cores Recovered . | . . . Used . | . . . Hacking Detections 1 | . 1 . Full Trace Events . | . . . Feedback Events . | . . . Feedback Blocked . | . . . Robot Schematics Acquired . | . . . Robots Built . | . . . Authchips . | . . . Time . | . . . Total Robot Build Rating . | . . . Part Schematics Acquired . | . . . Parts Built . | . . . Authchips . | . . . Time . | . . . Total Part Build Rating . | . . . Parts Repaired . | . . . Time . | . . . Parts Recycled . | . . . Recycled Matter . | . . . Retrieved Matter . | . . . Retrieved Components 9 | . 9 . Parts Scanalyzed . | . . . Part Schematics Acquired . | . . . Parts Damaged . | . . . Bothacking | -11 -10 -10 ------------ Run | Yrd Mat Sub Used RIF Installer . | . . . Robots Hacked . | . . . Non-combat . | . . . Combat . | . . . Robot Hacks Applied . | . . . Relay Couplers Released . | . . . Fabnet Peak Effective % . | . . . Robots Rewired . | . . . Allies Hacked . | . . . Hacks Repelled . | . . . Allies | -11 -10 -10 -------- Run | Yrd Mat Sub Total Allies . | . . . Largest Group . | . . . Highest-Rated Group . | . . . Highest-Rated Ally . | . . . Total Orders . | . . . Ally Attacks . | . . . Total Damage . | . . . Kills . | . . . Allies Corrupted . | . . . Allies Melted . | . . . Intel | -11 -10 -10 ------- Run | Yrd Mat Sub Active Infowar (turns) . | . . . Robot Analysis Total . | . . . Derelict Logs Recovered . | . . . Drone Launches . | . . . Drone Recoveries . | . . . Exploration | -11 -10 -10 ------------- Run | Yrd Mat Sub Turns Passed 1740 | 107 1012 621 Spaces Moved 941 | 58 562 321 Core 20 | 20 . . Treads 921 | 38 562 321 Legs . | . . . Wheels . | . . . Hover . | . . . Flight . | . . . Fastest Speed 50 | 50 160 160 Average Speed 158 | 138 160 160 Slowest Speed 160 | 160 160 160 Overloaded Moves . | . . . Propulsion Burnouts . | . . . Robots Hopped . | . . . Potential Cave-ins . | . . . Cave-ins Triggered . | . . . Exploration Rate (%) 36 | 4 78 26 Regions Visited 2 Branch Regions 1 Pre-discovered Areas . | . . . Known Exits Taken . | . . . Unknown Exits Taken 2 | 1 1 . Scrap Searched . | . . . Spaces Dug 13 | . 13 . Terrain Destroyed 147 | 4 100 43 Melee . | . . . Projectile . | . . . AOE 147 | 4 100 43 Terrain Rammed . | . . . Walls Destroyed . | . . . Machines Disabled . | . . . Actions | -11 -10 -10 --------- Run | Yrd Mat Sub Total 1053 | 72 618 363 Wait 5 | 2 1 2 Move 939 | 57 561 321 Hop . | . . . Pick Up 12 | 2 10 . Fast Attach 8 | 6 2 . Attach 4 | . 2 2 Detach 1 | . 1 . Swap 4 | . 1 3 Drop 4 | . 4 . Fire 51 | 5 36 10 Melee 25 | . . 25 Ram . | . . . Kick . | . . . Crush . | . . . Escape Stasis . | . . . Rewire . | . . . Trap . | . . . Miscellaneous . | . . . Route ------- -11/Scrapyard -10/Materials (discovered 4 exits: [*Mat x2] / [*Min] / *Sub) -10/Subcaves (discovered 1 exit: [*Mat]) History --------- Turn | Location | Event 4 | -11/Scrapyard | Discovered new exit (range 16) 108 | -11/Scrapyard | Entered Materials 252 | -10/Materials | Discovered new exit (range 16) 310 | -10/Materials | Build established: Mutant 514 | -10/Materials | Discovered new exit (range 15) 780 | -10/Materials | Core integrity fell below 50% 895 | -10/Materials | Discovered new exit (range 15) 1110 | -10/Materials | Discovered new exit (range 8) 1120 | -10/Materials | Entered Subcaves 1121 | -10/Subcaves | Approached by a straggling Scientist 1173 | -10/Subcaves | Visited Clippyterm 1178 | -10/Subcaves | Learned Factory fabricator intel 1218 | -10/Subcaves | Discovered new exit (range 12) 1273 | -10/Subcaves | Shifting Twisted Machinery released Riot Gun 1274 | -10/Subcaves | Shifting Twisted Machinery released Flamer 1344 | -10/Subcaves | A swath of the cavern ceiling suddenly collapsed 1401 | -10/Subcaves | A swath of the cavern ceiling suddenly collapsed 1719 | -10/Subcaves | Core integrity fell below 20% 1741 | -10/Subcaves | Destroyed by GA-8LV(R) with Subdweller Machine Gun Last Messages --------------- 01640_ Sneak attack on EO-GBO(u). 01640_ Destroyed Wheel. 01640_ EO-GBO(u) system corrupted by crushing effect. 01647_ Sneak attack on 5E-WUB(R). 01652_ 5E-WUB(R) knocked back. 01661_ Critical hit (Destroy). 01661_ Hvy. Ion Engine destroyed. 01665_ 5E-WUB(R) suffers critical hit (Smash). 01665_ Destroyed Sub. Monowheel. 01665_ 5E-WUB(R) system corrupted by crushing effect. 01666_ 5E-WUB(R) system terminally corrupted. 01666_ Sub. Power Source fried. 01668_ Acquired 35 matter. 01685_ Acquired 14 matter. 01727_ HI-6VK(R) knocked back. 01730_ Lgt. Treads destroyed. 01739_ Assault Rifle destroyed. 01741_ Lgt. Treads destroyed. Map ----- +----------------------------------------------------+ | ?????????????## #?????????????????????? | | ?????????????# #?????????????????????? | | ?????????????# #?????????????????????? | | ???????????### ### ##?????????????????????? | | ???????????# #???#####??????????????????????? | | ???????????# #??????????????????????????????? | | ???????????# ##?#####????????????????????????? | | ??????????## ## ####" #????????????????????????? | | ?????????## ## "##"""#?????????????????????????? | | ????????## ## ##"""######?????????????????????? | | ????????# # ##& " """#?????????????????????? | | ????????## ""##" #&" ##""#?????????????????????? | | ?????????# ""#""" " ""##"#??????????????????????? | | ?????????## ""#""""#" ###"##?????????????????????? | | ??????????##"##""""# ## ##????????????????????? | | ???????????#####""# "" #????????????????????? | | ?????????????##"""## """""#????????????????????? | | ?????????????# # " """#????????????????????? | | ????????????? ###" " ""##???????????????????? | | ??????????????? ###""" ""##??????????????????? | | ????????????????# #####" ""#??????????????????? | | ????????????##### #??## #??????????????????? | | ???????????## #?# # #### ###???????????? | | ???????????# ##R $ "????????? | | ??????????# R "????????? | | ?????????? @### # # ### "????????? | | ?????????? ##??####?#??????????????? | | ???????????## #????????????????????????? | | ????????????## #?????????????????????????? | | ?????????????##########??????????????????????????? | | ?????????????????????????????????????????????????? | | ?????????????????????????????????????????????????? | | ?????????????????????????????????????????????????? | | ?????????????????????????????????????????????????? | | ?????????????????????????????????????????????????? | | ?????????????????????????????????????????????????? | | ?????????????????????????????????????????????????? | | ?????????????????????????????????????????????????? | | ?????????????????????????????????????????????????? | | ?????????????????????????????????????????????????? | | ?????????????????????????????????????????????????? | | ?????????????????????????????????????????????????? | | ?????????????????????????????????????????????????? | | ?????????????????????????????????????????????????? | | | | | | | | | | | | | +----------------------------------------------------+ Best States ------------- Heat Dissipation 25 Energy Generation 14 Energy Capacity 280 Matter Stores 300 Matter Capacity 300 Sight Range 16 Terrain Scan Density 10 Evasion (%) 40 Recoil Reduction 2 Item Schematics ----------------- None Robot Schematics ------------------ None Fabricated ------------ Nothing Repaired ---------- Nothing Alien Tech Used ----------------- None Achievements -------------- None Challenges ------------ None Game ------ Seed PersonalArchitectObliterator Manual? 0 Play Time 00:09:58 Cumulative 171.5 hours Start 2025.05.11 @ 23:30:45 End 2025.05.11 @ 23:38:14 Sessions 1 Manual Loads 0 Difficulty Rogue Special Mode None Game No. 96 Rogue 88 Adventurer 8 Explorer 0 Win Type - Total 4 Types 2/0/1/1/0/0/0/0/0/0 Lore% 71 Gallery% 68 Achievement% 58 Wizard Run 0 Options --------- Layout 2 ASCII 0 Keyboard 1 Movement Numpad Keybinds 1 Fullscreen 1 Font 48/Smallcaps Map View 50x44 Zoom Use 0% Tactical HUD 1 Map Filters NONE Filters NONE Steam 1 RUN: 4a41c218-248f-456b-aa46-692a61a9f85b